[Event "*** Titled Tuesday 3|2 Blitz"]
[Site "Chess.com"]
[Date "2016.07.05"]
[Round "3"]
[White "underdogchss"]
[Black "GeorgMeier"]
[Result "0-1"]
[WhiteElo "2355"]
[BlackElo "2655"]
[TimeControl "180+2"]
[EndTime "17:37:59 PDT"]
[Termination "GeorgMeier won by resignation"]

1. d4 {[%clk 0:02:59.8]} 1... e6 {[%clk 0:03:01.1]} 2. Nf3 {[%clk 0:03:00.4]}
2... Nf6 {[%clk 0:03:01.6]} 3. c4 {[%clk 0:03:01.2]} 3... d5 {[%clk 0:02:59.7]}
4. Nc3 {[%clk 0:03:01.7]} 4... Be7 {[%clk 0:03:00.9]} 5. Bg5 {[%clk 0:03:02.8]}
5... h6 {[%clk 0:03:01.9]} 6. Bh4 {[%clk 0:03:04.1]} 6... O-O {[%clk 0:03:03.2]}
7. e3 {[%clk 0:03:05.3]} 7... b6 {[%clk 0:03:04.8]} 8. Bd3 {[%clk 0:03:06.2]}
8... Bb7 {[%clk 0:03:06.1]} 9. O-O {[%clk 0:03:07.2]} 9... Nbd7 {[%clk
0:03:07.7]} 10. Qe2 {[%clk 0:03:08.1]} 10... c5 {[%clk 0:03:09.1]} 11. Rfd1
{[%clk 0:03:03.6]} 11... Rc8 {[%clk 0:03:00.3]} 12. cxd5 {[%clk 0:02:44.8]}
12... Nxd5 {[%clk 0:03:01.4]} 13. Bg3 {[%clk 0:02:26.5]} 13... Nxc3 {[%clk
0:02:57.9]} 14. bxc3 {[%clk 0:02:27.3]} 14... Nf6 {[%clk 0:02:51]} 15. dxc5
{[%clk 0:02:14.2]} 15... Qe8 {[%clk 0:02:51.8]} 16. cxb6 {[%clk 0:02:14.3]}
16... axb6 {[%clk 0:02:53.7]} 17. Bb5 {[%clk 0:02:02.4]} 17... Bc6 {[%clk
0:02:54.9]} 18. Ba6 {[%clk 0:01:56.5]} 18... Bxf3 {[%clk 0:02:50.1]} 19. Qxf3
{[%clk 0:01:29.5]} 19... Rxc3 {[%clk 0:02:51.6]} 20. a4 {[%clk 0:01:28.8]} 20...
Rc5 {[%clk 0:02:26.3]} 21. Qb7 {[%clk 0:00:37.4]} 21... Nd5 {[%clk 0:02:26.6]}
22. Bb5 {[%clk 0:00:17.5]} 22... Qc8 {[%clk 0:02:20.2]} 23. Qxc8 {[%clk
0:00:17.9]} 23... Rfxc8 {[%clk 0:02:22.1]} 24. Bf1 {[%clk 0:00:15.9]} 24... Bf6
{[%clk 0:02:21.9]} 25. Ra3 {[%clk 0:00:14.6]} 25... h5 {[%clk 0:02:18.3]} 26. h3
{[%clk 0:00:12.5]} 26... g6 {[%clk 0:02:18]} 27. Rb3 {[%clk 0:00:09.9]} 27...
Kg7 {[%clk 0:02:16.9]} 28. e4 {[%clk 0:00:09.5]} 28... Nc3 {[%clk 0:02:17.4]}
29. Re1 {[%clk 0:00:10.5]} 29... Bd4 {[%clk 0:02:13.2]} 30. Rxb6 {[%clk
0:00:07.9]} 30... Nxa4 {[%clk 0:02:07.1]} 31. Rb7 {[%clk 0:00:05.9]} 31... Be5
{[%clk 0:01:51.5]} 32. Bxe5+ {[%clk 0:00:06.5]} 32... Rxe5 {[%clk 0:01:53.4]}
33. f3 {[%clk 0:00:06.9]} 33... Rec5 {[%clk 0:01:51.5]} 34. Ra1 {[%clk
0:00:07.6]} 34... Nc3 {[%clk 0:01:43]} 35. Raa7 {[%clk 0:00:08.6]} 35... Rf8
{[%clk 0:01:44]} 36. Kh2 {[%clk 0:00:09.3]} 36... h4 {[%clk 0:01:45.3]} 37. Rc7
{[%clk 0:00:10]} 37... Rxc7 {[%clk 0:01:34.8]} 38. Rxc7 {[%clk 0:00:11.2]} 38...
Na4 {[%clk 0:01:29.7]} 39. e5 {[%clk 0:00:11.8]} 39... Nb6 {[%clk 0:01:20.6]}
40. g4 {[%clk 0:00:12.3]} 40... Nd5 {[%clk 0:01:16.9]} 41. Rd7 {[%clk
0:00:12.2]} 41... g5 {[%clk 0:01:10.3]} 42. Rb7 {[%clk 0:00:08.1]} 42... Rc8
{[%clk 0:01:10.4]} 43. Bd3 {[%clk 0:00:08.5]} 43... Nf4 {[%clk 0:01:11.1]} 44.
Rb3 {[%clk 0:00:07.6]} 44... Rc5 {[%clk 0:01:10.4]} 45. Be4 {[%clk 0:00:07.6]}
45... Rxe5 {[%clk 0:01:11.5]} 46. Rb2 {[%clk 0:00:06.1]} 46... Rc5 {[%clk
0:01:12.5]} 47. Rc2 {[%clk 0:00:06.7]} 47... Ra5 {[%clk 0:01:11.5]} 48. Rd2
{[%clk 0:00:07.4]} 48... Kf6 {[%clk 0:01:11.2]} 49. Rb2 {[%clk 0:00:08.1]} 49...
Ke5 {[%clk 0:01:11.4]} 50. Rd2 {[%clk 0:00:08.9]} 50... Ra1 {[%clk 0:01:11.3]}
51. Rb2 {[%clk 0:00:09.2]} 51... Kd4 {[%clk 0:01:09.3]} 52. Rb4+ {[%clk
0:00:09.4]} 52... Kc3 {[%clk 0:01:07.8]} 53. Rb7 {[%clk 0:00:10.6]} 53... Ra2+
{[%clk 0:01:08.7]} 54. Kh1 {[%clk 0:00:11.4]} 54... Kd2 {[%clk 0:01:01.8]} 55.
Rxf7 {[%clk 0:00:12.1]} 55... Ke3 {[%clk 0:01:02.9]} 56. Rb7 {[%clk 0:00:12.5]}
56... Nxh3 {[%clk 0:01:02]} 57. Rb3+ {[%clk 0:00:13.3]} 57... Kf4 {[%clk
0:01:03.3]} 58. Bb7 {[%clk 0:00:13.2]} 58... Nf2+ {[%clk 0:00:59.7]} 59. Kg1
{[%clk 0:00:13.1]} 59... Rd2 {[%clk 0:01:00.8]} 60. Rb4+ {[%clk 0:00:13.7]}
60... Kg3 {[%clk 0:01:01.9]} 61. Rb1 {[%clk 0:00:14.4]} 61... Nh3+ {[%clk
0:01:03]} 62. Kf1 {[%clk 0:00:15.2]} 62... Nf4 {[%clk 0:01:04.1]} 63. Kg1 {[%clk
0:00:14.9]} 63... h3 {[%clk 0:01:03.9]} 64. Kh1 {[%clk 0:00:15.3]} 64... Kh4
{[%clk 0:01:01.6]} 65. Ba6 {[%clk 0:00:15.4]} 65... Rf2 {[%clk 0:01:01.4]} 66.
Rb8 {[%clk 0:00:14.9]} 66... Rxf3 {[%clk 0:01:00.7]} 67. Rb2 {[%clk 0:00:14]}
67... Kxg4 {[%clk 0:00:59.5]} 68. Kh2 {[%clk 0:00:13.7]} 68... Kh4 {[%clk
0:01:00.4]} 69. Bc8 {[%clk 0:00:14.1]} 69... g4 {[%clk 0:01:00.5]} 0-1

[Event "*** Titled Tuesday 3|2 Blitz"]
[Site "Chess.com"]
[Date "2016.07.05"]
[Round "3"]
[White "MinhGTrAn"]
[Black "Danhy"]
[Result "0-1"]
[WhiteElo "2663"]
[BlackElo "2411"]
[TimeControl "180+2"]
[EndTime "17:40:36 PDT"]
[Termination "Danhy won by resignation"]

1. d4 {[%clk 0:03:01.9]} 1... Nf6 {[%clk 0:03:00.4]} 2. c4 {[%clk 0:03:02.6]}
2... g6 {[%clk 0:03:01.4]} 3. Nc3 {[%clk 0:03:03.5]} 3... d5 {[%clk 0:03:03]} 4.
Bg5 {[%clk 0:03:04.6]} 4... Ne4 {[%clk 0:03:01.3]} 5. Bh4 {[%clk 0:03:05.3]}
5... Nxc3 {[%clk 0:03:01.3]} 6. bxc3 {[%clk 0:03:07.2]} 6... dxc4 {[%clk
0:03:00.9]} 7. e3 {[%clk 0:03:08.8]} 7... b5 {[%clk 0:02:56.3]} 8. a4 {[%clk
0:03:04.2]} 8... Ba6 {[%clk 0:02:20.5]} 9. axb5 {[%clk 0:02:39.5]} 9... Bxb5
{[%clk 0:02:20.4]} 10. Bxc4 {[%clk 0:02:41.1]} 10... Bxc4 {[%clk 0:02:18]} 11.
Qa4+ {[%clk 0:02:42.7]} 11... Qd7 {[%clk 0:02:15.7]} 12. Qxc4 {[%clk 0:02:43.9]}
12... Qc6 {[%clk 0:02:14.9]} 13. Qxc6+ {[%clk 0:02:43.6]} 13... Nxc6 {[%clk
0:02:13.7]} 14. Nf3 {[%clk 0:02:36.5]} 14... Bg7 {[%clk 0:02:11.8]} 15. Ra6
{[%clk 0:02:27.4]} 15... Kd7 {[%clk 0:02:09.4]} 16. Kd2 {[%clk 0:02:29]} 16...
Rhb8 {[%clk 0:02:04.8]} 17. Kc2 {[%clk 0:02:30.3]} 17... Rb6 {[%clk 0:02:00.4]}
18. Rha1 {[%clk 0:02:31.8]} 18... Rab8 {[%clk 0:01:55.7]} 19. R6a2 {[%clk
0:02:18.9]} 19... Rb5 {[%clk 0:01:50.8]} 20. Bg3 {[%clk 0:02:13.8]} 20... a5
{[%clk 0:01:48.1]} 21. Nd2 {[%clk 0:02:12.5]} 21... e5 {[%clk 0:01:44.9]} 22.
Nc4 {[%clk 0:01:56.6]} 22... exd4 {[%clk 0:01:41.4]} 23. exd4 {[%clk 0:01:58.5]}
23... Re8 {[%clk 0:01:39.9]} 24. Kd3 {[%clk 0:01:53.4]} 24... Ra8 {[%clk
0:01:34.4]} 25. Ne3 {[%clk 0:01:11.9]} 25... Rab8 {[%clk 0:01:29.5]} 26. Kc4
{[%clk 0:01:00.2]} 26... Rb3 {[%clk 0:01:15.8]} 27. Nd5 {[%clk 0:00:50.9]} 27...
R3b7 {[%clk 0:01:11.7]} 28. Nf4 {[%clk 0:00:46.2]} 28... Re8 {[%clk 0:01:08]}
29. Nd3 {[%clk 0:00:45.2]} 29... Bf8 {[%clk 0:01:06]} 30. Ne5+ {[%clk
0:00:43.9]} 30... Nxe5+ {[%clk 0:01:03.8]} 31. Bxe5 {[%clk 0:00:45.8]} 31... Ra8
{[%clk 0:01:00.2]} 32. Rxa5 {[%clk 0:00:45.6]} 32... Rxa5 {[%clk 0:00:57.6]} 33.
Rxa5 {[%clk 0:00:47.5]} 33... Rb2 {[%clk 0:00:55.5]} 34. Bg3 {[%clk 0:00:43.4]}
34... Bd6 {[%clk 0:00:53.4]} 35. Rb5 {[%clk 0:00:37.8]} 35... Rd2 {[%clk
0:00:50.9]} 36. Bh4 {[%clk 0:00:16.5]} 36... h6 {[%clk 0:00:38.1]} 37. Rb8
{[%clk 0:00:11.8]} 37... f5 {[%clk 0:00:35.8]} 38. Rd8+ {[%clk 0:00:05.5]} 38...
Kc6 {[%clk 0:00:33.2]} 39. f3 {[%clk 0:00:03.7]} 39... g5 {[%clk 0:00:31]} 40.
Bg3 {[%clk 0:00:03.8]} 40... f4 {[%clk 0:00:31.2]} 41. Be1 {[%clk 0:00:05.2]}
41... Re2 {[%clk 0:00:31.9]} 42. d5+ {[%clk 0:00:05.5]} 42... Kb7 {[%clk
0:00:28.5]} 43. Rh8 {[%clk 0:00:06.3]} 43... Rxe1 {[%clk 0:00:26.8]} 44. Rxh6
{[%clk 0:00:07.9]} 44... Rg1 {[%clk 0:00:25.3]} 45. Rg6 {[%clk 0:00:07.4]} 45...
Rxg2 {[%clk 0:00:26.1]} 46. h4 {[%clk 0:00:08.9]} 46... g4 {[%clk 0:00:20.4]}
47. Rxg4 {[%clk 0:00:08.8]} 47... Rg3 {[%clk 0:00:16.3]} 48. h5 {[%clk
0:00:05.9]} 48... Rxf3 {[%clk 0:00:14.7]} 49. Rh4 {[%clk 0:00:06.7]} 49... Re3
{[%clk 0:00:14.9]} 50. h6 {[%clk 0:00:07.6]} 50... Re8 {[%clk 0:00:16.5]} 51. h7
{[%clk 0:00:08.8]} 51... Rh8 {[%clk 0:00:17.7]} 52. Kd4 {[%clk 0:00:10.4]} 52...
Kc8 {[%clk 0:00:17.7]} 53. c4 {[%clk 0:00:10.2]} 53... Kd7 {[%clk 0:00:17.7]}
54. c5 {[%clk 0:00:11.2]} 54... Be7 {[%clk 0:00:19]} 55. Rh6 {[%clk 0:00:12.2]}
55... Ke8 {[%clk 0:00:17.9]} 56. d6 {[%clk 0:00:07.1]} 56... cxd6 {[%clk
0:00:18.4]} 57. cxd6 {[%clk 0:00:09]} 57... Bf8 {[%clk 0:00:19.8]} 58. Rf6
{[%clk 0:00:04.8]} 58... Rxh7 {[%clk 0:00:18.6]} 59. Rxf4 {[%clk 0:00:04.8]}
59... Bxd6 {[%clk 0:00:20]} 60. Rf5 {[%clk 0:00:05.8]} 60... Kd7 {[%clk
0:00:21.5]} 61. Rg5 {[%clk 0:00:06.4]} 61... Rh4+ {[%clk 0:00:22.8]} 62. Kd5
{[%clk 0:00:07.9]} 62... Rh7 {[%clk 0:00:23.7]} 63. Rf5 {[%clk 0:00:08.6]} 63...
Re7 {[%clk 0:00:24.4]} 64. Rg5 {[%clk 0:00:09.6]} 64... Re1 {[%clk 0:00:25.9]}
65. Rg7+ {[%clk 0:00:10.6]} 65... Be7 {[%clk 0:00:26.3]} 66. Rh7 {[%clk
0:00:10.1]} 66... Rd1+ {[%clk 0:00:27.9]} 67. Ke5 {[%clk 0:00:11.6]} 67... Rd2
{[%clk 0:00:28.6]} 68. Rh6 {[%clk 0:00:12.1]} 68... Re2+ {[%clk 0:00:28.9]} 69.
Kd5 {[%clk 0:00:13.3]} 69... Rd2+ {[%clk 0:00:28.5]} 70. Ke5 {[%clk 0:00:14.6]}
70... Bd6+ {[%clk 0:00:29.9]} 71. Ke4 {[%clk 0:00:15]} 71... Kc6 {[%clk
0:00:30.1]} 72. Rh5 {[%clk 0:00:16.2]} 72... Re2+ {[%clk 0:00:30.9]} 73. Kd4
{[%clk 0:00:17.8]} 73... Rc2 {[%clk 0:00:29.4]} 74. Rh6 {[%clk 0:00:17.6]} 74...
Rc1 {[%clk 0:00:29.5]} 75. Rg6 {[%clk 0:00:18.1]} 75... Re1 {[%clk 0:00:30]} 76.
Rh6 {[%clk 0:00:18.4]} 76... Rg1 {[%clk 0:00:29.7]} 77. Rf6 {[%clk 0:00:18.8]}
77... Rg4+ {[%clk 0:00:31]} 78. Ke3 {[%clk 0:00:16.1]} 78... Kd5 {[%clk
0:00:32.5]} 79. Rf7 {[%clk 0:00:10.9]} 79... Rg3+ {[%clk 0:00:31.8]} 80. Rf3
{[%clk 0:00:11.5]} 80... Rg2 {[%clk 0:00:25.7]} 81. Rf1 {[%clk 0:00:09.6]} 81...
Be5 {[%clk 0:00:26.4]} 82. Rd1+ {[%clk 0:00:10.2]} 82... Ke6 {[%clk 0:00:26.4]}
83. Rd8 {[%clk 0:00:04.7]} 83... Rg3+ {[%clk 0:00:25.5]} 84. Ke4 {[%clk
0:00:05.4]} 84... Rg4+ {[%clk 0:00:26.1]} 85. Ke3 {[%clk 0:00:06.8]} 85... Ra4
{[%clk 0:00:24.3]} 86. Re8+ {[%clk 0:00:07.1]} 86... Kd5 {[%clk 0:00:25.3]} 87.
Rd8+ {[%clk 0:00:08.6]} 87... Bd6 {[%clk 0:00:26.6]} 88. Kf3 {[%clk 0:00:08.8]}
88... Rf4+ {[%clk 0:00:26.4]} 89. Ke3 {[%clk 0:00:09.8]} 89... Rg4 {[%clk
0:00:26.3]} 90. Kf3 {[%clk 0:00:04.3]} 90... Rg3+ {[%clk 0:00:26.6]} 91. Kf2
{[%clk 0:00:05.8]} 91... Ra3 {[%clk 0:00:27.3]} 92. Ke2 {[%clk 0:00:06.7]} 92...
Rb3 {[%clk 0:00:20.2]} 93. Kf2 {[%clk 0:00:06.3]} 93... Ke5 {[%clk 0:00:19.4]}
94. Ke2 {[%clk 0:00:05.3]} 94... Bc5 {[%clk 0:00:19.2]} 95. Re8+ {[%clk
0:00:03.6]} 95... Kd5 {[%clk 0:00:19.7]} 96. Rd8+ {[%clk 0:00:02.9]} 96... Ke4
{[%clk 0:00:20.9]} 97. Re8+ {[%clk 0:00:03.7]} 97... Kf4 {[%clk 0:00:22.1]} 98.
Rf8+ {[%clk 0:00:04.9]} 98... Bxf8 {[%clk 0:00:22]} 0-1

[Event "*** Titled Tuesday 3|2 Blitz"]
[Site "Chess.com"]
[Date "2016.07.05"]
[Round "3"]
[White "dretch"]
[Black "Sanan_Sjugirov"]
[Result "1/2-1/2"]
[WhiteElo "2633"]
[BlackElo "2662"]
[TimeControl "180+2"]
[EndTime "17:40:45 PDT"]
[Termination "Game drawn - insufficient material"]

1. d4 {[%clk 0:03:01.9]} 1... Nf6 {[%clk 0:03:01.3]} 2. c4 {[%clk 0:03:03.2]}
2... e6 {[%clk 0:03:02.8]} 3. Nc3 {[%clk 0:03:04.4]} 3... Bb4 {[%clk 0:03:04]}
4. Qc2 {[%clk 0:03:05.6]} 4... d5 {[%clk 0:03:04]} 5. cxd5 {[%clk 0:03:07]} 5...
exd5 {[%clk 0:03:05.1]} 6. Bg5 {[%clk 0:03:07.5]} 6... O-O {[%clk 0:03:04]} 7.
e3 {[%clk 0:03:07.1]} 7... h6 {[%clk 0:03:03.9]} 8. Bh4 {[%clk 0:02:58]} 8...
Be6 {[%clk 0:03:01.7]} 9. Bd3 {[%clk 0:02:57.9]} 9... Nbd7 {[%clk 0:02:59.3]}
10. Ne2 {[%clk 0:02:58.4]} 10... c5 {[%clk 0:02:58.3]} 11. O-O {[%clk
0:02:58.2]} 11... c4 {[%clk 0:02:57.8]} 12. Bh7+ {[%clk 0:02:58.4]} 12... Kh8
{[%clk 0:02:57.2]} 13. Bf5 {[%clk 0:03:00.3]} 13... Qe8 {[%clk 0:02:35.1]} 14.
Bxe6 {[%clk 0:02:47.2]} 14... Qxe6 {[%clk 0:02:37]} 15. Nf4 {[%clk 0:02:45.3]}
15... Qc6 {[%clk 0:02:34.1]} 16. Bxf6 {[%clk 0:02:38.2]} 16... Nxf6 {[%clk
0:02:34.8]} 17. Qf5 {[%clk 0:02:31.6]} 17... Bxc3 {[%clk 0:02:32.4]} 18. bxc3
{[%clk 0:02:32.2]} 18... Rad8 {[%clk 0:02:29.3]} 19. f3 {[%clk 0:02:31.6]} 19...
Rfe8 {[%clk 0:02:25.4]} 20. Rfe1 {[%clk 0:02:20.9]} 20... b5 {[%clk 0:02:15.5]}
21. a4 {[%clk 0:02:20.8]} 21... a6 {[%clk 0:02:06.9]} 22. axb5 {[%clk
0:02:18.9]} 22... axb5 {[%clk 0:02:08.8]} 23. Ra7 {[%clk 0:02:19.6]} 23... Kg8
{[%clk 0:02:09.6]} 24. Kf2 {[%clk 0:02:09.5]} 24... Ra8 {[%clk 0:01:55.9]} 25.
Rea1 {[%clk 0:02:04]} 25... Rxa7 {[%clk 0:01:56.7]} 26. Rxa7 {[%clk 0:02:05.9]}
26... Qb6 {[%clk 0:01:47.2]} 27. Ra2 {[%clk 0:01:51.7]} 27... Qd6 {[%clk
0:01:47.3]} 28. Rb2 {[%clk 0:01:37.1]} 28... Qa3 {[%clk 0:01:33.8]} 29. Qc2
{[%clk 0:01:37.4]} 29... Qe7 {[%clk 0:01:30.6]} 30. Qc1 {[%clk 0:01:31.9]} 30...
Qd7 {[%clk 0:01:30.6]} 31. Qb1 {[%clk 0:01:21.9]} 31... Qe7 {[%clk 0:01:26]} 32.
Re2 {[%clk 0:01:19.3]} 32... Rb8 {[%clk 0:01:22.1]} 33. Rb2 {[%clk 0:01:16.6]}
33... Re8 {[%clk 0:01:22.1]} 34. Qc1 {[%clk 0:01:17.7]} 34... Rb8 {[%clk
0:01:16.5]} 35. Qb1 {[%clk 0:01:14.1]} 35... Re8 {[%clk 0:01:14.7]} 36. Qc1
{[%clk 0:01:14.6]} 36... Qa3 {[%clk 0:01:04.8]} 37. Ne2 {[%clk 0:01:07.3]} 37...
Qa6 {[%clk 0:00:53.3]} 38. Ng3 {[%clk 0:00:50.8]} 38... Rb8 {[%clk 0:00:49.6]}
39. Qb1 {[%clk 0:00:49.1]} 39... Qa5 {[%clk 0:00:49.7]} 40. Ne2 {[%clk
0:00:48.6]} 40... Qa6 {[%clk 0:00:47.4]} 41. Ra2 {[%clk 0:00:44.3]} 41... Qe6
{[%clk 0:00:46.7]} 42. Rb2 {[%clk 0:00:43.4]} 42... Re8 {[%clk 0:00:45]} 43. Qc1
{[%clk 0:00:44.2]} 43... Qd7 {[%clk 0:00:43.7]} 44. Nf4 {[%clk 0:00:41.5]} 44...
g6 {[%clk 0:00:39.7]} 45. Qb1 {[%clk 0:00:38.3]} 45... Qe7 {[%clk 0:00:39.5]}
46. Qc1 {[%clk 0:00:32]} 46... Rb8 {[%clk 0:00:36.1]} 47. Qb1 {[%clk 0:00:30.6]}
47... Re8 {[%clk 0:00:36.6]} 48. Qc1 {[%clk 0:00:30.9]} 48... Qd7 {[%clk
0:00:36.7]} 49. Qb1 {[%clk 0:00:22.4]} 49... Rb8 {[%clk 0:00:36.6]} 50. Qc1
{[%clk 0:00:15.7]} 50... Kg7 {[%clk 0:00:36.9]} 51. Qb1 {[%clk 0:00:16.5]} 51...
Qc6 {[%clk 0:00:33.3]} 52. Qc1 {[%clk 0:00:16.4]} 52... Qd6 {[%clk 0:00:30.9]}
53. Qb1 {[%clk 0:00:16.8]} 53... g5 {[%clk 0:00:29.9]} 54. Ne2 {[%clk
0:00:16.7]} 54... Qxh2 {[%clk 0:00:28.2]} 55. Rxb5 {[%clk 0:00:16.8]} 55... Qh4+
{[%clk 0:00:25.4]} 56. Kf1 {[%clk 0:00:14]} 56... Rxb5 {[%clk 0:00:21.1]} 57.
Qxb5 {[%clk 0:00:14.6]} 57... g4 {[%clk 0:00:22.6]} 58. Qb8 {[%clk 0:00:13.8]}
58... gxf3 {[%clk 0:00:20.6]} 59. gxf3 {[%clk 0:00:14.9]} 59... Qh1+ {[%clk
0:00:19.4]} 60. Kf2 {[%clk 0:00:15.7]} 60... Qh4+ {[%clk 0:00:16]} 61. Kf1
{[%clk 0:00:15.2]} 61... Qh1+ {[%clk 0:00:14.9]} 62. Kf2 {[%clk 0:00:16.4]}
62... Qh4+ {[%clk 0:00:16.2]} 63. Kg2 {[%clk 0:00:16.9]} 63... Qg5+ {[%clk
0:00:16.9]} 64. Qg3 {[%clk 0:00:16.8]} 64... Nh5 {[%clk 0:00:16.7]} 65. Qg4
{[%clk 0:00:16.7]} 65... f5 {[%clk 0:00:16.5]} 66. Qxg5+ {[%clk 0:00:16.7]}
66... hxg5 {[%clk 0:00:18.4]} 67. Kf2 {[%clk 0:00:13.7]} 67... Kg6 {[%clk
0:00:18.4]} 68. Nc1 {[%clk 0:00:14.5]} 68... Nf6 {[%clk 0:00:19.1]} 69. Na2
{[%clk 0:00:15.7]} 69... Kf7 {[%clk 0:00:18.2]} 70. Nb4 {[%clk 0:00:16.6]} 70...
Ke6 {[%clk 0:00:19.7]} 71. Nc6 {[%clk 0:00:17.3]} 71... Kd6 {[%clk 0:00:19.7]}
72. Ne5 {[%clk 0:00:18.2]} 72... Ke6 {[%clk 0:00:21.3]} 73. Kg3 {[%clk
0:00:17.6]} 73... Nh5+ {[%clk 0:00:22.3]} 74. Kf2 {[%clk 0:00:18.7]} 74... Nf6
{[%clk 0:00:24.2]} 75. Kg2 {[%clk 0:00:19]} 75... g4 {[%clk 0:00:20.9]} 76. Kg3
{[%clk 0:00:18.3]} 76... gxf3 {[%clk 0:00:21.9]} 77. Nxf3 {[%clk 0:00:17.4]}
77... Ne4+ {[%clk 0:00:23.1]} 78. Kf4 {[%clk 0:00:18.6]} 78... Nxc3 {[%clk
0:00:23.8]} 79. Ng5+ {[%clk 0:00:20.3]} 79... Kf6 {[%clk 0:00:24.6]} 80. Nh7+
{[%clk 0:00:20.3]} 80... Kg7 {[%clk 0:00:23.5]} 81. Ng5 {[%clk 0:00:20.7]} 81...
Kg6 {[%clk 0:00:24.8]} 82. Ne6 {[%clk 0:00:15.9]} 82... Kf6 {[%clk 0:00:26.1]}
83. Nc7 {[%clk 0:00:17.1]} 83... Ke7 {[%clk 0:00:22.1]} 84. Kxf5 {[%clk
0:00:13]} 84... Kd6 {[%clk 0:00:21.5]} 85. Na6 {[%clk 0:00:13.1]} 85... Ne4
{[%clk 0:00:18.1]} 86. Nb4 {[%clk 0:00:13]} 86... c3 {[%clk 0:00:19.3]} 87. Nc2
{[%clk 0:00:12.6]} 87... Nd2 {[%clk 0:00:17.8]} 88. Kf4 {[%clk 0:00:12.3]} 88...
Kc6 {[%clk 0:00:16.7]} 89. Ke5 {[%clk 0:00:11.8]} 89... Nc4+ {[%clk 0:00:14.3]}
90. Ke6 {[%clk 0:00:12.4]} 90... Nb6 {[%clk 0:00:15.3]} 91. e4 {[%clk
0:00:08.6]} 91... dxe4 {[%clk 0:00:16]} 92. Ke5 {[%clk 0:00:09.9]} 92... Kb5
{[%clk 0:00:16.3]} 93. Kxe4 {[%clk 0:00:10.3]} 93... Kc4 {[%clk 0:00:17.6]} 94.
Ne3+ {[%clk 0:00:11.2]} 94... Kb3 {[%clk 0:00:17.7]} 95. Kd3 {[%clk 0:00:09.5]}
95... Kb4 {[%clk 0:00:12.1]} 96. d5 {[%clk 0:00:07.4]} 96... Nxd5 {[%clk
0:00:11.6]} 97. Nxd5+ {[%clk 0:00:08.4]} 97... Kc5 {[%clk 0:00:13]} 98. Nxc3
{[%clk 0:00:09.6]} 1/2-1/2

[Event "*** Titled Tuesday 3|2 Blitz"]
[Site "Chess.com"]
[Date "2016.07.05"]
[Round "4"]
[White "akinov-akinseye"]
[Black "simplerXiao"]
[Result "1-0"]
[WhiteElo "1904"]
[BlackElo "2288"]
[TimeControl "180+2"]
[EndTime "17:45:17 PDT"]
[Termination "akinov-akinseye won by resignation"]

1. e4 {[%clk 0:02:59]} 1... g6 {[%clk 0:02:59.8]} 2. d4 {[%clk 0:02:59.3]} 2...
Bg7 {[%clk 0:03:01.3]} 3. Be3 {[%clk 0:03:00.3]} 3... c6 {[%clk 0:03:00.6]} 4.
Nc3 {[%clk 0:03:01.6]} 4... d5 {[%clk 0:03:01.6]} 5. e5 {[%clk 0:03:01.9]} 5...
h5 {[%clk 0:03:02.8]} 6. Qd2 {[%clk 0:03:02]} 6... Nh6 {[%clk 0:03:03.9]} 7.
O-O-O {[%clk 0:03:00.9]} 7... Nf5 {[%clk 0:03:04.9]} 8. Bg5 {[%clk 0:03:00.2]}
8... b5 {[%clk 0:02:59.8]} 9. f3 {[%clk 0:02:56.5]} 9... h4 {[%clk 0:02:59.2]}
10. Bd3 {[%clk 0:02:48.5]} 10... Qa5 {[%clk 0:02:58.9]} 11. Bxf5 {[%clk
0:02:48.2]} 11... Bxf5 {[%clk 0:02:59.2]} 12. Kb1 {[%clk 0:02:42]} 12... b4
{[%clk 0:02:57.4]} 13. Nce2 {[%clk 0:02:41.5]} 13... Nd7 {[%clk 0:02:57.1]} 14.
g4 {[%clk 0:02:42.4]} 14... Be6 {[%clk 0:02:38]} 15. h3 {[%clk 0:02:39.9]} 15...
Nb6 {[%clk 0:02:35.7]} 16. b3 {[%clk 0:02:38.6]} 16... f6 {[%clk 0:02:32.6]} 17.
exf6 {[%clk 0:02:38.9]} 17... exf6 {[%clk 0:02:33.5]} 18. Nf4 {[%clk 0:02:29.4]}
18... Bf7 {[%clk 0:02:32.4]} 19. Re1+ {[%clk 0:02:25]} 19... Kd7 {[%clk
0:02:33.5]} 20. Bxh4 {[%clk 0:02:17.9]} 20... Rxh4 {[%clk 0:02:29.7]} 21. Nge2
{[%clk 0:02:14]} 21... Re8 {[%clk 0:02:28.1]} 22. Ng3 {[%clk 0:02:14.2]} 22...
Rhh8 {[%clk 0:02:27.7]} 23. Nd3 {[%clk 0:02:03.3]} 23... Kc7 {[%clk 0:02:22.6]}
24. Qf4+ {[%clk 0:02:00.3]} 24... Kb7 {[%clk 0:02:23.7]} 25. Nc5+ {[%clk
0:02:01]} 25... Ka8 {[%clk 0:02:12.9]} 26. Qc7 {[%clk 0:01:59.5]} 26... Rb8
{[%clk 0:02:11.4]} 27. Qxc6+ {[%clk 0:01:59.1]} 1-0

[Event "*** Titled Tuesday 3|2 Blitz"]
[Site "Chess.com"]
[Date "2016.07.05"]
[Round "4"]
[White "jcibarra"]
[Black "Superfelix"]
[Result "1-0"]
[WhiteElo "2663"]
[BlackElo "2341"]
[TimeControl "180+2"]
[EndTime "17:46:06 PDT"]
[Termination "jcibarra won by resignation"]

1. e4 {[%clk 0:03:01.9]} 1... c6 {[%clk 0:02:59.7]} 2. d4 {[%clk 0:03:01.7]}
2... d5 {[%clk 0:02:59.9]} 3. e5 {[%clk 0:03:03.1]} 3... c5 {[%clk 0:03:01.3]}
4. dxc5 {[%clk 0:03:04]} 4... Nc6 {[%clk 0:03:02.6]} 5. a3 {[%clk 0:03:05.2]}
5... Nxe5 {[%clk 0:02:59.4]} 6. b4 {[%clk 0:03:06.1]} 6... Nf6 {[%clk
0:02:53.6]} 7. Bb2 {[%clk 0:03:06.5]} 7... Ned7 {[%clk 0:02:49.5]} 8. Nf3 {[%clk
0:03:06.4]} 8... g6 {[%clk 0:02:50.4]} 9. Nc3 {[%clk 0:03:06]} 9... e6 {[%clk
0:02:45.4]} 10. Nb5 {[%clk 0:03:04.3]} 10... a6 {[%clk 0:02:25.8]} 11. Nd6+
{[%clk 0:03:04.3]} 11... Bxd6 {[%clk 0:02:26.8]} 12. cxd6 {[%clk 0:03:06.2]}
12... Qb6 {[%clk 0:02:23.9]} 13. c4 {[%clk 0:02:56]} 13... Qxd6 {[%clk
0:02:20.7]} 14. cxd5 {[%clk 0:02:56.9]} 14... e5 {[%clk 0:02:13.6]} 15. Bc4
{[%clk 0:02:51.2]} 15... b5 {[%clk 0:02:14.3]} 16. Bb3 {[%clk 0:02:51.4]} 16...
O-O {[%clk 0:02:11.3]} 17. O-O {[%clk 0:02:52.8]} 17... Bb7 {[%clk 0:02:12.5]}
18. Re1 {[%clk 0:02:52.5]} 18... Rfe8 {[%clk 0:02:12.2]} 19. Qd2 {[%clk
0:02:50.5]} 19... Rad8 {[%clk 0:02:06.1]} 20. Rad1 {[%clk 0:02:50.1]} 20... e4
{[%clk 0:01:43.8]} 21. Ng5 {[%clk 0:02:47.1]} 21... Ng4 {[%clk 0:01:30.2]} 22.
g3 {[%clk 0:02:40]} 22... Nde5 {[%clk 0:01:31]} 23. Qf4 {[%clk 0:02:24.1]} 23...
h6 {[%clk 0:01:14.9]} 24. Nxe4 {[%clk 0:02:22.5]} 24... Qf8 {[%clk 0:01:09.6]}
25. Bxe5 {[%clk 0:02:09]} 25... Nxe5 {[%clk 0:01:02.1]} 26. Nf6+ {[%clk
0:02:08.2]} 26... Kg7 {[%clk 0:01:00.1]} 27. Nxe8+ {[%clk 0:02:08.4]} 1-0